Cogmind - Beta 13 @@@ ROGUE MODE // 2024.04.21 @ 18:08:32 Player: Cheeriohz Result: Destroyed by Piercing Trap Performance ------------- Evolutions (0) 0 Regions Visited (3) 600 Robots Destroyed (38) 190 Value Destroyed (680) 680 Prototype IDs (2) 40 Alien Tech Used (0) 0 Bonus (0) 0 TOTAL SCORE: 1510 Bonus ------- None Cogmind --------- Core Integrity 0/250 Matter 300/300 Energy 246/250 System Corruption 0% Temperature Cool (2) Movement Treading (160) Location -10/Subcaves Parts ------- > --- POWER (1) -------- Ion Engine > --- PROPULSION (2) --- Light Treads Light Treads > --- UTILITY (2) ------ Scrap Shield > --- WEAPON (2) ------- Subdweller Machine Gun Subdweller Machine Gun > --- INVENTORY (5) ---- Light Treads Makeshift Hacking Suite Subdweller Machine Gun Subdweller Shrapnel Launcher Makeshift Sword Peak State ------------ > --- POWER ------------ Ion Engine > --- PROPULSION ------- Light Treads Light Treads > --- UTILITY ---------- Large Storage Unit Makeshift Light Armor Plating > --- WEAPON ----------- Battle Rifle Subdweller Machine Gun > --- INVENTORY -------- Light Ion Engine Light Treads Light Treads Wheel Wheel Small Battery Large Matter Pod Structural Scanner Seismic Detector Hacking Suite Tractor Beam Subdweller Machine Gun Rocket Launcher Mining Laser Makeshift Sword [Rating: 14] Favorites ----------- Power Ion Engine Engine Ion Engine Propulsion Wheel Treads Light Treads Leg Aluminum Leg Wheel Wheel Utility Large Storage Unit Device Seismic Detector Storage Large Storage Unit Protection Scrap Shield Weapon Assault Rifle Energy Gun EM Pulse Gun Ballistic Gun Assault Rifle Launcher Rocket Launcher Special Weapon Mining Laser Slashing Weapon Makeshift Sword Build | -11 -10 -10 -10 ------- Run | Yrd Mat Min Sub Slots Evolved . | . . . . Power . | . . . . Propulsion . | . . . . Utility . | . . . . Weapon . | . . . . Parts Attached 38 | 1 10 3 24 Power 1 | . . . 1 Engine 1 | . . . 1 Core . | . . . . Reactor . | . . . . Propulsion 8 | . 5 . 3 Treads 3 | . . . 3 Leg . | . . . . Wheel 5 | . 5 . . Hover . | . . . . Flight . | . . . . Utility 5 | 1 1 1 2 Device 2 | 1 . 1 . Storage 1 | . 1 . . Processor . | . . . . Hackware . | . . . . Protection 2 | . . . 2 Artifact . | . . . . Weapon 24 | . 4 2 18 Energy Gun 2 | . 1 . 1 Energy Cannon . | . . . . Ballistic Gun 17 | . 3 1 13 Ballistic Cannon . | . . . . Launcher 2 | . . 1 1 Special Weapon 2 | . . . 2 Impact Weapon . | . . . . Slashing Weapon 1 | . . . 1 Piercing Weapon . | . . . . Special Melee Weapon . | . . . . Unidentified Prototypes . | . . . . Parts Lost 6 | . 3 . 3 Power 1 | . . . 1 Propulsion 1 | . 1 . . Utility . | . . . . Weapon 4 | . 2 . 2 Highest Loss Streak 2 | . 1 . 2 To Critical Strikes . | . . . . Average Slot Usage (%) 95 | . 96 100 92 Engine 14 | . 14 14 14 Treads 13 | . . . 27 Wheel 13 | . 24 28 . Device 8 | . 14 14 2 Storage 10 | . 14 14 7 Protection 5 | . . . 10 Energy Gun 3 | . 9 . 2 Ballistic Gun 22 | . 15 27 24 Naked Turns . | . . . . Heaviest Build 37 | 15 29 29 37 Greatest Support 40 | 20 20 20 40 Greatest Overweight (x) 2 | . 2 1 1 Average Overweight (x) . | . . 1 . Largest Inventory Capacity 15 | 8 15 15 15 Average Capacity 11 | 8 12 15 10 Most Carried 15 | 7 14 15 15 Average Carried 11 | 6 9 14 10 Final Capacity 15 | 8 15 15 5 Final Carried 15 | 7 14 15 5 Class Distribution -------------------- 98% | Mutant Dominant Class ---------------- Mutant | -10/Materials Mutant | -10/Mines Mutant | -10/Subcaves Resources | -11 -10 -10 -10 ----------- Run | Yrd Mat Min Sub Matter Collected 1047 | 210 73 71 693 Remotely . | . . . . Salvage Created 1121 | 74 470 64 513 Parts 86 | 6 37 11 32 Haulers Intercepted 2 | . 2 . . Recyclers Shooed 2 | 1 1 . . Parts Field Recycled . | . . . . Retrieved Matter . | . . . . Parts Self-Destructed 7 | . . . 7 Prevented . | . . . . Kills | -11 -10 -10 -10 ------- Run | Yrd Mat Min Sub Combat Hostiles Destroyed 28 | . 9 5 14 Guns 21 | . 6 2 13 AOE 7 | . 3 3 1 Classes Destroyed 7 | 2 4 . 1 Builder 3 | . 2 1 . Tunneler 1 | 1 . . . Hauler 2 | . 2 . . Recycler 3 | 1 2 . . Operator 1 | . 1 . . Swarmer 17 | . 9 5 3 Subdweller 11 | . . . 11 Best Kill Streak 5 | 1 5 4 3 Combat Bots Only 3 | . 3 3 3 Max Kills in Single Turn 3 | 1 3 2 1 Gunslinging . | . . . . Exploded 3 | . 3 2 1 Melee . | . . . . Uniques/NPCs Destroyed . | . . . . Combat | -11 -10 -10 -10 -------- Run | Yrd Mat Min Sub Hostile Shots Fired 124 | . 30 13 81 Missed 26 | . 10 1 15 Damage Taken 1571 | . 224 104 1243 Core 250 | . 50 . 200 Absorbed by Shields . | . . . . Core Remaining (%) 100 | 100 . . . Volleys Fired 116 | 9 38 12 57 Largest 2 | 2 2 2 2 Hottest 100 | 90 90 40 100 Shots Fired 205 | 18 58 21 108 Gun 196 | 18 58 18 102 Cannon . | . . . . Launcher 4 | . . 3 1 Special 5 | . . . 5 Kinetic 128 | . 20 18 90 Thermal 27 | 9 1 . 17 Explosive 4 | . . 3 1 Electromagnetic 46 | 9 37 . . Robot Hit Streak 16 | 3 10 4 16 Robot Miss Streak 5 | 5 3 3 3 Penetration Max . | . . . . Secondary Targets 1 | . . . 1 Max Gunslinging Chain 1 | . . . 1 Shots Hit Robots 138 | 8 39 8 83 Core Hits 54 | 3 18 8 25 Critical Kills . | . . . . Critical Parts Destroyed 1 | . . . 1 Critical Strikes 5 | 2 . . 3 Burn 1 | 1 . . . Destroy 3 | . . . 3 Corrupt 1 | 1 . . . Melee Attacks 6 | . . . 6 Impact . | . . . . Slashing 6 | . . . 6 Piercing . | . . . . Sneak Attacks . | . . . . Combat Hostiles . | . . . . Follow-up Attacks . | . . . . Damage Inflicted 2536 | 106 558 330 1542 Guns 2135 | 106 467 90 1472 Cannons . | . . . . Explosions 401 | . 91 240 70 Melee . | . . . . Ramming . | . . . . Kinetic 1481 | . 130 90 1261 Thermal 340 | 38 91 . 211 Explosive 310 | . . 240 70 Electromagnetic 405 | 68 337 . . Impact . | . . . . Slashing . | . . . . Piercing . | . . . . Highest Corruption . | . . . . Average Corruption . | . . . . Corruption Purged . | . . . . Corruption Blocked . | . . . . Overload Shots . | . . . . Overflow Damage 32 | . 13 19 . Projectiles . | . . . . Explosions 32 | . 13 19 . Melee . | . . . . Knockbacks . | . . . . Impact . | . . . . Kinetic . | . . . . Secondary . | . . . . Self-Inflicted Damage 100 | . 64 . 36 Shots 3 | . 2 . 1 Rammed . | . . . . Targets Rammed . | . . . . Kicked . | . . . . Crushed . | . . . . Highest Temperature 120 | 120 66 . . Average Temperature 41 | 55 26 . . Received Heat Transfer 54 | . . . 54 Siege Activations . | . . . . Robots Corrupted . | . . . . Combat Hostiles . | . . . . Parts Fried 1 | . 1 . . Impact Corruptions . | . . . . Robots Melted . | . . . . Combat Hostiles . | . . . . Parts Melted . | . . . . Heat Transferred 585 | 185 150 . 250 Parts Sabotaged . | . . . . Parts Stolen . | . . . . Parts Stripped . | . . . . Power Chain Reactions 2 | . 2 . . Alert | -11 -10 -10 -10 ------- Run | Yrd Mat Min Sub Peak Influence 217 | 10 198 217 . Initial 58 | . 6 58 . Average 85 | 5 99 79 . Maximum Alert Level 1 | . . 1 . Low Security (%) 95 | 100 100 89 . Level 1 4 | . . 10 . Level 2 . | . . . . Level 3 . | . . . . Level 4 . | . . . . Level 5 . | . . . . High Security . | . . . . Max Security . | . . . . Squads Dispatched 1 | . 1 . . Investigation . | . . . . Extermination . | . . . . Reinforcement 1 | . 1 . . Assault . | . . . . Garrison . | . . . . Intercept . | . . . . Searches Triggered . | . . . . Construction Impeded . | . . . . Haulers Reinforced . | . . . . Active Scanning Responses . | . . . . Cargo Convoy Interrupts . | . . . . Stealth | -11 -10 -10 -10 --------- Run | Yrd Mat Min Sub Distress Signals 3 | . 3 . . Communications Jammed . | . . . . Distress Signals . | . . . . Times Spotted 36 | . 17 5 14 Peak Tracking Total 6 | . 6 3 3 Tactical Retreats 2 | . 1 1 . Traps | -11 -10 -10 -10 ------- Run | Yrd Mat Min Sub Traps Triggered 2 | . 1 . 1 Indirectly . | . . . . Trap Hack Attempts . | . . . . Triggered . | . . . . Disarmed . | . . . . Reprogrammed . | . . . . Reused . | . . . . Traps Extracted . | . . . . Installed . | . . . . Triggered . | . . . . Machines | -11 -10 -10 -10 ---------- Run | Yrd Mat Min Sub Machines Disabled 1 | . . 1 . Max in Single Turn 1 | . . 1 . Machines Repaired . | . . . . Machines Dismantled . | . . . . Machines Sabotaged . | . . . . Overloaded Fab Kills . | . . . . Hacking | -11 -10 -10 -10 --------- Run | Yrd Mat Min Sub Machines Accessed 6 | . 6 . . Terminals 6 | . 6 . . Fabricators . | . . . . Repair Stations . | . . . . Recycling Units . | . . . . Scanalyzers . | . . . . Garrison Access . | . . . . Total Hacks 17 | . 17 . . Successful 9 | . 9 . . Failed 8 | . 8 . . Catastrophic . | . . . . Database Lockouts . | . . . . Manual 9 | . 9 . . Terminals 17 | . 17 . . Fabricators . | . . . . Repair Stations . | . . . . Recycling Units . | . . . . Scanalyzers . | . . . . Garrison Access . | . . . . Terminal Hacks 7 | . 7 . . Robot Analysis 4 | . 4 . . Prototype ID Bank 1 | . 1 . . Alert Level 1 | . 1 . . Locate Traps 1 | . 1 . . Fabricator Hacks . | . . . . Repair Station Hacks . | . . . . Recycling Unit Hacks . | . . . . Scanalyzer . | . . . . Garrison Access Hacks . | . . . . Unauthorized Hacks 2 | . 2 . . Terminals 2 | . 2 . . Track 1 | . 1 . . Botnet 1 | . 1 . . Fabricators . | . . . . Repair Stations . | . . . . Recycling Units . | . . . . Scanalyzers . | . . . . Garrison Access . | . . . . Data Cores Recovered 1 | . 1 . . Used 1 | . 1 . . Hacking Detections 5 | . 5 . . Full Trace Events . | . . . . Feedback Events . | . . . . Feedback Blocked . | . . . . Robot Schematics Acquired . | . . . . Robots Built . | . . . . Authchips . | . . . . Time . | . . . . Total Robot Build Rating . | . . . . Part Schematics Acquired . | . . . . Parts Built . | . . . . Authchips . | . . . . Time . | . . . . Total Part Build Rating . | . . . . Parts Repaired . | . . . . Time . | . . . . Parts Recycled . | . . . . Recycled Matter . | . . . . Retrieved Matter . | . . . . Retrieved Components . | . . . . Parts Scanalyzed . | . . . . Part Schematics Acquired . | . . . . Parts Damaged . | . . . . Bothacking | -11 -10 -10 -10 ------------ Run | Yrd Mat Min Sub Used RIF Installer . | . . . . Robots Hacked . | . . . . Non-combat . | . . . . Combat . | . . . . Robot Hacks Applied . | . . . . Relay Couplers Released . | . . . . Fabnet Peak Effective % . | . . . . Robots Rewired . | . . . . Allies Hacked . | . . . . Hacks Repelled . | . . . . Allies | -11 -10 -10 -10 -------- Run | Yrd Mat Min Sub Total Allies . | . . . . Largest Group . | . . . . Highest-Rated Group . | . . . . Highest-Rated Ally . | . . . . Total Orders . | . . . . Ally Attacks . | . . . . Total Damage . | . . . . Kills . | . . . . Allies Corrupted . | . . . . Allies Melted . | . . . . Intel | -11 -10 -10 -10 ------- Run | Yrd Mat Min Sub Robot Analysis Total 4 | . 4 . . Derelict Logs Recovered 4 | . . 3 1 Drone Launches . | . . . . Drone Recoveries . | . . . . Exploration | -11 -10 -10 -10 ------------- Run | Yrd Mat Min Sub Turns Passed 2953 | 72 733 706 1442 Spaces Moved 1704 | 36 590 327 751 Core . | . . . . Treads 701 | . . . 701 Legs 99 | 36 63 . . Wheels 904 | . 527 327 50 Hover . | . . . . Flight . | . . . . Fastest Speed 80 | 120 80 95 95 Average Speed 122 | 120 95 95 155 Slowest Speed 160 | 120 120 95 160 Overloaded Moves . | . . . . Propulsion Burnouts . | . . . . Robots Hopped . | . . . . Cave-ins Triggered . | . . . . Exploration Rate (%) 54 | 4 89 87 38 Regions Visited 3 Branch Regions 2 Pre-discovered Areas 4 | . . 2 2 Known Exits Taken . | . . . . Unknown Exits Taken 3 | 1 1 1 . Scrap Searched 14 | . . 1 13 Spaces Dug 1 | . . . 1 Terrain Destroyed 24 | . 5 18 1 Melee 1 | . . . 1 Projectile . | . . . . AOE 23 | . 5 18 . Terrain Rammed . | . . . . Walls Destroyed . | . . . . Machines Disabled . | . . . . Actions | -11 -10 -10 -10 --------- Run | Yrd Mat Min Sub Total 2358 | 46 703 702 907 Wait 437 | . 48 358 31 Move 1701 | 35 589 326 751 Hop . | . . . . Pick Up 22 | 1 12 2 7 Fast Attach 15 | 1 6 . 8 Attach 6 | . 3 . 3 Detach 3 | . . . 3 Swap 17 | . 1 3 13 Drop 25 | . 6 1 18 Fire 116 | 9 38 12 57 Melee 6 | . . . 6 Ram . | . . . . Kick . | . . . . Crush . | . . . . Escape Stasis . | . . . . Rewire . | . . . . Trap . | . . . . Miscellaneous 10 | . . . 10 Route ------- -11/Scrapyard -10/Materials (discovered 4 exits: *Mat x2 / [*Min x2]) -10/Mines (discovered 2 exits: *Mat / [*Sub]) -10/Subcaves History --------- Turn | Location | Event 1 | -11/Scrapyard | Discovered new exit (range 2) 73 | -11/Scrapyard | Entered Materials 296 | -10/Materials | Discovered new exit (range 16) 321 | -10/Materials | Build established: Mutant 422 | -10/Materials | Discovered new exit (range 9) 595 | -10/Materials | Discovered new exit (range 13) 693 | -10/Materials | Discovered new exit (range 6) 806 | -10/Materials | Entered Mines 919 | -10/Mines | Learned location of Mines (-9) 987 | -10/Mines | Received a Rocket Launcher from a helpful Derelict 1102 | -10/Mines | Identified exit to Materials 1418 | -10/Mines | Discovered new exit (range 5) 1512 | -10/Mines | Entered Subcaves 1548 | -10/Subcaves | Disturbed a concealed Subdweller 1644 | -10/Subcaves | Learned location of Storage (-7) 1677 | -10/Subcaves | Core integrity fell below 50% 1775 | -10/Subcaves | Disturbed a concealed Subdweller 1775 | -10/Subcaves | Disturbed a concealed Subdweller 1797 | -10/Subcaves | Core integrity fell below 20% 1887 | -10/Subcaves | A swath of the cavern ceiling suddenly collapsed 2053 | -10/Subcaves | Disturbed a concealed Subdweller 2146 | -10/Subcaves | Learned location of Zion (-7) 2146 | -10/Subcaves | Met a Zionite searching for "candidates" 2916 | -10/Subcaves | Shifting Twisted Machinery released Barrage Gun 2932 | -10/Subcaves | Shifting Twisted Machinery released Sub. Shrapnel Launcher 2933 | -10/Subcaves | Shifting Twisted Machinery released Shrapnel Trap 2954 | -10/Subcaves | Destroyed by Piercing Trap Last Messages --------------- 02675_ Scrap Shield Fragment affixed to Scrap Shield (+47). 02708_ Scrap Shield Fragment affixed to Scrap Shield (+43). 02861_ 3I-KZN(R) destroyed. 02864_ HL-QHT(R) destroyed. 02870_ Scrap Shield Fragment affixed to Scrap Shield (+47). 02873_ Scrap Shield Fragment affixed to Scrap Shield (+49). 02877_ Scrap Shield Fragment affixed to Scrap Shield (+21). 02880_ Dropped Sub. Machine Gun. 02883_ Acquired 25 matter. 02886_ Dropped Battle Rifle. 02887_ Acquired Sub. Machine Gun. 02888_ Acquired 10 matter. Barrage Gun falls loose from the Twisted Machinery. Sub. Shrapnel Launcher falls loose from the Twisted Machinery. Shrapnel Trap falls loose from the Twisted Machinery. 02944_ Dropped Rocket Launcher. 02945_ Acquired Sub. Shrapnel Launcher. 02954_ Triggered Piercing Trap. 02954_ Spikes shoot up from the floor. 02954_ Critical hit (Impale). Map ----- +----------------------------------------------------+ | ?????????????????????????????????????????????????? | | ?????????????????????????????????????????????????? | | ?????????????????????????????????????????????????? | | ?????????????????????????????????????????????????? | | ?????????????????????????????????????????????????? | | ?????????????????????????????????????????????????? | | ?????????????????????????????????????????????????? | | ????????????????????????????#????????????????????? | | ???????????????????????????? ????????????????????? | | ???????????????????????????? ""????????????????? | | ???????????????????????????? "" ????????????????? | | ???????????????????????????? "" ???? ?????????? | | ????????????????????????????"" #???? #????????? | | ???????????????????????????? ????? ?????????? | | ????????????????????????????# #????? = ?????????? | | ????????????????????????##### #???# %??????????? | | ????????????????????##?##" ##?#"" ????##?????? | | ???????????????????## ##"^" #?#"" #??? #?????? | | ???????????????????# """& #?#"" #?? #??? ??? | | ????????????????????# " #?# ### ## ??? | | ???????????????????## "] ### & ?? | | ??????????????????## ## *%! ?? | | ??????????????????# [ ?? | | ??????????????????# ### ?? | | ??????????????????# #?# #### ## | | ??????????????????# @ #?##^ ##?? | | ??????????????????#### #?# ## ?? | | ?????????????????????## ## """ ???? | | ??????????????????????# ### """ ##????? | | ????????????????????? ## #### " ##?????? | | ???????????????????? #?###### [###??????? | | ???????????????????" ###??##### "##????????? | | ??????????????????? ????## ""##?????????? | | ?????????????????? ???### # ###??????????? | | ?????????????????? ????# ## "#???????????? | | ?????????????????#?????## #### "#???????????? | | ????????????????????????# ###?? "#???????????? | | ????????????????????????## #?##?# #???????????? | | ????????????????????????## "## ## ##???????????? | | ?????????????????????#### "## ""##" "????????????? | | ?????????????????????# "### """"""#????????????? | | ?????????????????????## %### """##???????????? | | ???????????????????##?# & [! "" #???????????? | | ??????????????????## ## *% [ """ "??????????? | | ????????????#####?# " *#!## ?????????? | | ????????????# "##""" ^ ###?## "##""##????????? | | ????????????# """ " " #????? #?????????????? | | ?????????????# """ ""##?????? #?????????????? | | ??????????????# " ####??????? #?????????????? | | ??????????????## %##???????????##?????????????? | +----------------------------------------------------+ Best States ------------- Heat Dissipation 25 Energy Generation 10 Energy Capacity 250 Matter Stores 300 Matter Capacity 300 Sight Range 16 Terrain Scan Density 10 Armor Coverage 800 Evasion (%) 55 Recoil Reduction 2 Item Schematics ----------------- None Robot Schematics ------------------ None Fabricated ------------ Nothing Alien Tech Used ----------------- None Achievements -------------- None Challenges ------------ None Game ------ Seed EncryptedLightClaymores Manual? 0 Play Time 00:18:19 Cumulative 148.5 hours Start 2024.04.21 @ 17:52:09 End 2024.04.21 @ 18:08:32 Sessions 1 Manual Loads 0 Difficulty Rogue Special Mode None Game No. 134 Rogue 134 Adventurer 0 Explorer 0 Win Type - Total 3 Types 2/0/0/1/0/0/0/0/0 Lore% 55 Gallery% 72 Achievement% 55 Wizard Run 0 Options --------- Layout 2 ASCII 0 Keyboard 1 Movement Numpad Keybinds 0 Fullscreen 1 Font 32/SmallcapsGlow Map View 77x44 Zoom Use 0% Tactical HUD 1 Map Filters NONE Filters NONE Steam 1 RUN: fe2ffda0-0994-4a13-b4c0-6162c2083ce9